fUST/lending_fUST_20250527
["ID","MTS","AMOUNT","RATE_DAILY","PERIOD"]
[362486115,1748337035388,-430.0,0.0002,2]
[362486116,1748337035397,-430.0,0.0002,2]
[362486117,1748337035406,-430.0,0.0002,2]
[362486118,1748337035415,-430.0,0.0002,2]
[362486119,1748337035425,-430.0,0.0002,2]
[362486120,1748337035435,-524.28708822,0.0002,2]
[362486121,1748337035444,-430.0,0.0002,2]
[362486122,1748337035453,-224.6,0.0002,2]
[362486123,1748337035463,-430.0,0.0002,2]
[362486124,1748337035473,-430.0,0.0002,2]
[362486125,1748337035482,-430.0,0.0002,2]
[362486126,1748337035491,-430.0,0.0002,2]
[362486127,1748337035501,-430.0,0.0002,2]
[362486128,1748337035510,-430.0,0.0002,2]
[362486129,1748337035520,-503.54978116,0.00020103,2]
[362486130,1748337035530,-500.0,0.00020103,2]
[362486131,1748337035540,-503.3493337,0.00020121,2]
[362486132,1748337035550,-500.0,0.00020141,2]
[362486133,1748337035559,-500.83326274,0.00020141,2]
[362486134,1748337035569,-500.0,0.00020151,2]
[362486135,1748337035579,-500.0,0.00020151,2]
[362486136,1748337035588,-500.0,0.00020151,2]
[362486137,1748337035597,-500.0,0.00020151,2]
[362486138,1748337035605,-500.0,0.00020151,2]
[362486139,1748337035614,-500.79122663,0.00020216,2]
[362486140,1748337035623,-500.0,0.00020237,2]
[362486141,1748337035633,-501.18617219,0.00020237,2]
[362486142,1748337035643,-615.97760198,0.00020245,2]
[362486143,1748337035653,-168.69438535,0.00020273,2]
[362486144,1748337035663,-430.0,0.00020273,2]
[362486145,1748337035673,-430.0,0.00020273,2]
[362486146,1748337035681,-579.32,0.00020273,2]
[362486147,1748337035690,-430.0,0.00020273,2]
[362486148,1748337035699,-430.0,0.00020273,2]
[362486149,1748337035708,-430.0,0.00020273,2]
[362486150,1748337035719,-430.0,0.00020273,2]
[362486151,1748337035728,-651.19,0.00020273,2]
[362486152,1748337035737,-430.0,0.00020273,2]
[362486153,1748337035746,-480.26,0.00020273,2]
[362486154,1748337035755,-467.39,0.00020273,2]
[362486155,1748337035764,-430.0,0.00020273,2]
[362486156,1748337035774,-430.0,0.00020273,2]
[362486157,1748337035784,-430.0,0.00020273,2]
[362486158,1748337035794,-430.0,0.00020273,2]
[362486159,1748337035804,-430.0,0.00020273,2]
[362486160,1748337035813,-430.0,0.00020273,2]
[362486161,1748337035823,-430.0,0.00020273,2]
[362486162,1748337035832,-430.0,0.00020273,2]
[362486163,1748337035842,-430.0,0.00020273,2]
[362486164,1748337035851,-430.0,0.00020273,2]
[362486165,1748337035861,-509.31,0.00020273,2]
[362486166,1748337035870,-430.0,0.00020273,2]
[362486167,1748337035880,-430.0,0.00020273,2]
[362486168,1748337035889,-430.0,0.00020273,2]
[362486169,1748337035900,-500.0,0.00020315,2]
[362486170,1748337035912,-504.47152845,0.00020332,2]
[362486171,1748337035925,-298.62,0.00020547,2]
[362486172,1748337035934,-430.0,0.00020547,2]
[362486173,1748337035946,-430.0,0.00020547,2]
[362486174,1748337035960,-430.0,0.00020547,2]
[362486175,1748337035970,-430.0,0.00020547,2]
[362486176,1748337035980,-651.19,0.00020547,2]
[362486177,1748337035990,-430.0,0.00020547,2]
[362486178,1748337035999,-480.26,0.00020547,2]
[362486179,1748337036009,-467.39,0.00020547,2]
[362486180,1748337036018,-484.98472616,0.00020547,2]
[362486181,1748337036027,-292.21,0.00020547,2]
[362486182,1748337036036,-430.0,0.00020547,2]
[362486183,1748337036046,-430.0,0.00020547,2]
[362486184,1748337036058,-430.0,0.00020547,2]
[362486185,1748337036068,-430.0,0.00020547,2]
[362486186,1748337036078,-430.0,0.00020547,2]
[362486187,1748337036087,-430.0,0.00020547,2]
[362486188,1748337036096,-430.0,0.00020547,2]
[362486189,1748337036107,-430.0,0.00020547,2]
[362486190,1748337036116,-430.0,0.00020547,2]
[362486191,1748337036126,-430.0,0.00020547,2]
[362486192,1748337036136,-430.0,0.00020547,2]
[362486193,1748337036145,-150.0,0.00020661,2]
[362486194,1748337036154,-430.0,0.00020821,2]
[362486195,1748337036165,-430.0,0.00020821,2]
[362486196,1748337036174,-519.2229373,0.00020821,2]
[362486197,1748337036184,-430.0,0.00020821,2]
[362486198,1748337036193,-651.19,0.00020821,2]
[362486199,1748337036203,-430.0,0.00020821,2]
[362486200,1748337036213,-480.26,0.00020821,2]
[362486201,1748337036223,-467.39,0.00020821,2]
[362486202,1748337036232,-430.0,0.00020821,2]
[362486203,1748337036242,-430.0,0.00020821,2]
[362486204,1748337036251,-430.0,0.00020821,2]
[362486205,1748337036261,-430.0,0.00020821,2]
[362486206,1748337036270,-430.0,0.00020821,2]
[362486207,1748337036282,-430.0,0.00020821,2]
[362486208,1748337036291,-430.0,0.00020821,2]
[362486209,1748337036300,-430.0,0.00020821,2]
[362486210,1748337036310,-430.0,0.00020821,2]
[362486211,1748337036319,-430.0,0.00020821,2]
[362486212,1748337036329,-430.0,0.00020821,2]
[362486213,1748337036338,-420.0,0.00020898,2]
[362486214,1748337036347,-164.105,0.00020944,2]
[362486215,1748337036356,-430.0,0.00021095,2]
[362486216,1748337036365,-430.0,0.00021095,2]
[362486217,1748337036374,-430.0,0.00021095,2]
[362486218,1748337036384,-651.19,0.00021095,2]
[362486219,1748337036394,-430.0,0.00021095,2]
[362486220,1748337036403,-480.26,0.00021095,2]
[362486221,1748337036414,-467.39,0.00021095,2]
[362486222,1748337036424,-430.0,0.00021095,2]
[362486223,1748337036433,-430.0,0.00021095,2]
[362486224,1748337036443,-430.0,0.00021095,2]
[362486225,1748337036452,-430.0,0.00021095,2]
[362486226,1748337036462,-430.0,0.00021095,2]
[362486227,1748337036472,-430.0,0.00021095,2]
[362486228,1748337036482,-430.0,0.00021095,2]
[362486229,1748337036491,-430.0,0.00021095,2]
[362486230,1748337036501,-430.0,0.00021095,2]
[362486231,1748337036511,-430.0,0.00021095,2]
[362486232,1748337036521,-430.0,0.00021095,2]
[362486233,1748337036532,-500.0,0.00021164,2]
[362486234,1748337036542,-515.63,0.00021369,2]
[362486235,1748337036552,-430.0,0.00021369,2]
[362486236,1748337036561,-430.0,0.00021369,2]
[362486237,1748337036571,-651.19,0.00021369,2]
[362486238,1748337036580,-430.0,0.00021369,2]
[362486239,1748337036590,-480.26,0.00021369,2]
[362486240,1748337036599,-467.39,0.00021369,2]
[362486241,1748337036608,-430.0,0.00021369,2]
[362486242,1748337036618,-430.0,0.00021369,2]
[362486243,1748337036627,-482.94,0.00021369,2]
[362486244,1748337036637,-430.0,0.00021369,2]
[362486245,1748337036646,-430.0,0.00021369,2]
[362486246,1748337036656,-430.0,0.00021369,2]
[362486247,1748337036665,-430.0,0.00021369,2]
[362486248,1748337036675,-430.0,0.00021369,2]
[362486249,1748337036797,-430.0,0.00021369,2]
[362486250,1748337036808,-430.0,0.00021369,2]
[362486251,1748337036818,-176.35,0.000216,2]
[362486252,1748337036827,-430.0,0.00021643,2]
[362486253,1748337036837,-430.0,0.00021643,2]
[362486254,1748337036847,-651.19,0.00021643,2]
[362486255,1748337036856,-430.0,0.00021643,2]
[362486256,1748337036866,-480.26,0.00021643,2]
[362486257,1748337036876,-467.39,0.00021643,2]
[362486258,1748337036886,-430.0,0.00021643,2]
[362486259,1748337036897,-430.0,0.00021643,2]
[362486260,1748337036913,-430.0,0.00021643,2]
[362486261,1748337036923,-549.21,0.00021643,2]
[362486262,1748337036932,-430.0,0.00021643,2]
[362486263,1748337036942,-430.0,0.00021643,2]
[362486264,1748337036952,-364.59,0.00021643,2]
[362486265,1748337036961,-430.0,0.00021643,2]
[362486266,1748337036971,-163.45,0.00021643,2]
[362486267,1748337036981,-150.0,0.000219,2]
[362486268,1748337036990,-292.2741035,0.00021917,2]
[362486269,1748337037000,-430.0,0.00021917,2]
[362486270,1748337037009,-430.0,0.00021917,2]
[362486271,1748337037019,-651.19,0.00021917,2]
[362486272,1748337037028,-430.0,0.00021917,2]
[362486273,1748337037038,-480.26,0.00021917,2]
[362486274,1748337037047,-467.39,0.00021917,2]
[362486275,1748337037057,-467.7,0.00021917,2]
[362486276,1748337037066,-430.0,0.00021917,2]
[362486277,1748337037076,-430.0,0.00021917,2]
[362486278,1748337037086,-400.72,0.00021917,2]
[362486279,1748337037096,-475.75,0.00021917,2]
[362486280,1748337037106,-430.0,0.00021917,2]
[362486281,1748337037116,-150.0,0.00022,2]
[362486282,1748337037126,-430.0,0.00022191,2]
[362486283,1748337037135,-176.92150106,0.00022191,2]
[362486284,1748337037144,-651.19,0.00022191,2]
[362486285,1748337037154,-430.0,0.00022191,2]
[362486286,1748337037163,-480.26,0.00022191,2]
[362486287,1748337037173,-467.39,0.00022191,2]
[362486288,1748337037183,-430.0,0.00022191,2]
[362486289,1748337037192,-430.0,0.00022191,2]
[362486290,1748337037202,-430.0,0.00022191,2]
[362486291,1748337037211,-430.0,0.00022465,2]
[362486292,1748337037222,-651.19,0.00022465,2]
[362486293,1748337037231,-430.0,0.00022465,2]
[362486294,1748337037241,-480.26,0.00022465,2]
[362486295,1748337037250,-467.39,0.00022465,2]
[362486296,1748337037260,-456.41,0.00022465,2]
[362486297,1748337037269,-430.0,0.00022465,2]
[362486298,1748337037279,-430.0,0.00022465,2]
[362486299,1748337037288,-235.13,0.00022539,2]
[362486300,1748337037299,-430.0,0.00022739,2]
[362486301,1748337037310,-651.19,0.00022739,2]
[362486302,1748337037321,-430.0,0.00022739,2]
[362486303,1748337037332,-480.26,0.00022739,2]
[362486304,1748337037342,-467.39,0.00022739,2]
[362486305,1748337037351,-430.0,0.00022739,2]
[362486306,1748337037361,-430.0,0.00022739,2]
[362486307,1748337037371,-587.0,0.00022775,2]
[362486308,1748337037383,-430.0,0.00023013,2]
[362486309,1748337037393,-651.19,0.00023013,2]
[362486310,1748337037403,-430.0,0.00023013,2]
[362486311,1748337037412,-480.26,0.00023013,2]
[362486312,1748337037421,-467.39,0.00023013,2]
[362486313,1748337037432,-430.0,0.00023013,2]
[362486314,1748337037443,-573.64,0.00023013,2]
[362486315,1748337037453,-388.01,0.00023287,2]
[362486316,1748337037463,-651.19,0.00023287,2]
[362486317,1748337037473,-430.0,0.00023287,2]
[362486318,1748337037482,-480.26,0.00023287,2]
[362486319,1748337037492,-467.39,0.00023287,2]
[362486320,1748337037502,-311.76,0.00023287,2]
[362486321,1748337037512,-1008.0,0.00023386,3]
[362486322,1748337037522,-293.91,0.00023478,2]
[362486323,1748337037533,-651.19,0.00023561,2]
[362486324,1748337037542,-430.0,0.00023561,2]
[362486325,1748337037551,-480.26,0.00023561,2]
[362486326,1748337037561,-467.39,0.00023561,2]
[362486327,1748337037571,-1000.0,0.00023628,2]
[362486328,1748337037580,-651.19,0.00023835,2]
[362486329,1748337037590,-430.0,0.00023835,2]
[362486330,1748337037599,-480.26,0.00023835,2]
[362486331,1748337037609,-467.39,0.00023835,2]
[362486332,1748337037619,-2000.0,0.00023841,3]
[362486333,1748337037630,-150.0,0.000241,2]
[362486334,1748337037640,-651.19,0.00024109,2]
[362486336,1748337037650,-430.0,0.00024109,2]
[362486337,1748337037661,-480.26,0.00024109,2]
[362486338,1748337037670,-467.39,0.00024109,2]
[362486339,1748337037680,-653.72746393,0.00024334,2]
[362486340,1748337037689,-651.19,0.00024383,2]
[362486341,1748337037699,-430.0,0.00024383,2]
[362486342,1748337037712,-480.26,0.00024383,2]
[362486343,1748337037721,-467.39,0.00024383,2]
[362486344,1748337037731,-393.627929,0.000245,3]
[362486345,1748337037741,-151.0,0.000245,10]
[362486346,1748337037751,-352.69,0.00024519,2]
[362486347,1748337037761,-3594115.79001749,0.000246,5]
[362486381,1748337038112,-916.19629124,0.000246,5]
[362486388,1748337038167,-3440.0,0.000246,5]
[362486430,1748337038567,-22522.67055943,0.000246,5]
[362486431,1748337038579,-398.04150106,0.000246,5]
[362487132,1748337046267,-347.77,0.00019178,2]
[362487134,1748337046276,-150.0,0.00020321,2]
[362487136,1748337046286,-416.35133649,0.000209,4]
[362487139,1748337046296,-414.07866351,0.00021072,4]
[362487141,1748337046308,-2.27267291,0.00021072,4]
[362487143,1748337046317,-416.35133642,0.00021245,4]
[362487146,1748337046327,-150.0,0.00021288,2]
[362487147,1748337046336,-416.35133642,0.00021417,5]
[362487149,1748337046345,-416.35133642,0.0002159,5]
[362487151,1748337046355,-416.35133642,0.00021762,5]
[362487153,1748337046364,-416.35133642,0.00021934,6]
[362487155,1748337046373,-416.35133642,0.00022107,6]
[362487157,1748337046383,-150.0,0.00022256,2]
[362487160,1748337046392,-416.35133642,0.00022279,6]
[362487162,1748337046402,-416.35133642,0.00022452,7]
[362487164,1748337046411,-416.35133642,0.00022624,7]
[362487166,1748337046421,-416.35133642,0.00022797,7]
[362487167,1748337046430,-416.35133642,0.00022969,8]
[362487170,1748337046439,-416.35133642,0.00023141,8]
[362487172,1748337046450,-150.0,0.00023223,2]
[362487175,1748337046468,-416.35133642,0.00023314,9]
[362487177,1748337046482,-416.35133642,0.00023486,9]
[362487179,1748337046493,-416.35133642,0.00023659,9]
[362487181,1748337046503,-416.35133642,0.00023831,10]
[362487183,1748337046514,-416.35133642,0.00024003,10]
[362487185,1748337046524,-416.35133642,0.00024176,10]
[362487188,1748337046534,-170.45,0.00024191,2]
[362487190,1748337046545,-416.35133642,0.00024348,11]
[362487192,1748337046555,-416.35133642,0.00024521,11]
[362487194,1748337046566,-49693.66881968,0.000246,5]
[362487505,1748337049726,178.526145,0.00023056,120]
[362488364,1748337110442,2000.0,0.00021975,120]
[362488371,1748337802965,2767.8488315,0.00016,2]
[362488372,1748337802989,2232.1511685,0.00016,2]
[362488373,1748337818321,5000.0,0.00016,2]
[362488374,1748337834413,5000.0,0.00016,2]
[362488377,1748337851031,5000.0,0.00016,2]
[362488378,1748337866912,670.1352315,0.00016,2]
[362488379,1748337866940,4329.8647685,0.00016,2]
[362488380,1748337882783,5000.0,0.00016,2]
[362488383,1748337913588,3792.87440702,0.00016,2]
[362488385,1748337970198,-184.1007928,0.00016204,2]
[362488387,1748338043142,-208.07349117,0.000169,2]
[362488388,1748338043702,254.15,0.00016,2]
[362488390,1748338105618,186.481786,0.00016265,120]
[362488392,1748338125023,332.55984873,0.0002191,120]
[362488394,1748338150198,-186.481786,0.00016265,2]
[362488395,1748338150221,-5000.0,0.00016731,2]
[362488396,1748338150242,-923.8391967,0.000169,2]
[362488397,1748338150263,-300.0,0.00016997,2]
[362488398,1748338150288,-300.0,0.00016997,2]
[362488399,1748338150309,-300.0,0.00016998,2]
[362488400,1748338150330,-300.0,0.00016998,2]
[362488401,1748338150350,-300.0,0.00016998,2]
[362488402,1748338150373,-1200.0,0.00016998,2]
[362488403,1748338150393,-500.0,0.00016998,2]
[362488404,1748338150414,-483.06753868,0.00016998,2]
[362488405,1748338150436,-392.75968266,0.00016998,2]
[362488406,1748338150457,-479.60376789,0.00016998,2]
[362488407,1748338150479,-399.01840318,0.00016999,2]
[362488408,1748338150500,-500.0,0.00016999,2]
[362488409,1748338150524,-500.0,0.00016999,2]
[362488410,1748338150546,-500.0,0.00016999,2]
[362488411,1748338150569,-500.0,0.00016999,2]
[362488412,1748338150590,-337.77157068,0.00016999,2]
[362488413,1748338150613,-500.0,0.00016999,2]
[362488414,1748338150639,-500.0,0.00016999,2]
[362488415,1748338150662,-500.0,0.00016999,2]
[362488416,1748338150684,-500.0,0.00016999,2]
[362488417,1748338150708,-500.0,0.00016999,2]
[362488418,1748338150735,-500.0,0.00016999,2]
[362488419,1748338150758,-500.0,0.00016999,2]
[362488420,1748338150781,-500.0,0.00016999,2]
[362488421,1748338150804,-500.0,0.00016999,2]
[362488422,1748338150827,-500.0,0.00016999,2]
[362488423,1748338150850,-500.0,0.00016999,2]
[362488424,1748338150873,-500.0,0.00016999,2]
[362488425,1748338150896,-500.0,0.00016999,2]
[362488426,1748338150920,-500.0,0.00016999,2]
[362488427,1748338150943,-500.0,0.00016999,2]
[362488428,1748338150966,-397.40600106,0.00016999,2]
[362488429,1748338150989,-500.0,0.00016999,2]
[362488430,1748338151014,-500.0,0.00016999,2]
[362488431,1748338151038,-500.0,0.00016999,2]
[362488432,1748338151062,-500.0,0.00016999,2]
[362488433,1748338151086,-300.0,0.00016999,2]
[362488434,1748338151110,-500.0,0.00016999,2]
[362488435,1748338151134,-500.0,0.00016999,2]
[362488436,1748338151158,-500.0,0.00016999,2]
[362488437,1748338151181,-500.0,0.00016999,2]
[362488438,1748338151203,-41211.11022768,0.00017,3]
[362488439,1748338158166,-186182.17434442,0.00017,3]
[362488440,1748338158189,-12656.54583329,0.00017,3]
[362488441,1748338158211,-2931.91508644,0.00017545,2]
[362488442,1748338173126,-12222.12425529,0.00017,3]
[362488445,1748338177891,1002.28346013,0.00024658,120]
[362488505,1748338232486,-302.65671918,0.00017,3]
[362488507,1748338232497,-879.97806889,0.00017545,2]
[362488509,1748338232506,-300.0,0.00017808,2]
[362488511,1748338232516,-300.0,0.00017808,2]
[362488513,1748338232525,-300.0,0.00017808,2]
[362488515,1748338232535,-1200.0,0.00017808,2]
[362488517,1748338232545,-24900.0,0.00017809,2]
[362488519,1748338232555,-159.9418633,0.00017926,2]
[362488521,1748338232564,-1237.73,0.00018,2]
[362488522,1748338232573,-1861.59652196,0.00018,2]
[362488523,1748338232583,-420.0,0.00018565,2]
[362488525,1748338232593,-923.83919666,0.00018864,2]
[362488526,1748338232602,-152.0,0.00019082,2]
[362488528,1748338232611,-500.0,0.0001911,2]
[362488529,1748338232621,-500.0,0.0001911,2]
[362488530,1748338232631,-150.0,0.00019153,2]
[362488531,1748338232641,-2289.065924,0.00019173,2]
[362488533,1748338232651,-430.0,0.00019178,2]
[362488534,1748338232660,-430.0,0.00019178,2]
[362488536,1748338232671,-430.0,0.00019178,2]
[362488538,1748338232682,-430.0,0.00019178,2]
[362488540,1748338232692,-430.0,0.00019178,2]
[362488542,1748338232701,-430.0,0.00019178,2]
[362488543,1748338232710,-430.0,0.00019178,2]
[362488544,1748338232720,-400.0,0.00019178,2]
[362488545,1748338232729,-430.0,0.00019178,2]
[362488546,1748338232739,-425.0,0.00019178,2]
[362488547,1748338232749,-408.17474952,0.00019178,2]
[362488548,1748338232759,-451.57301229,0.00019178,2]
[362488549,1748338232769,-430.0,0.00019178,2]
[362488550,1748338232778,-476.97077342,0.00019178,2]
[362488551,1748338232788,-430.0,0.00019178,2]
[362488552,1748338232798,-430.0,0.00019178,2]
[362488553,1748338232807,-430.0,0.00019178,2]
[362488554,1748338232818,-430.0,0.00019178,2]
[362488555,1748338232828,-430.0,0.00019178,2]
[362488556,1748338232838,-430.0,0.00019178,2]
[362488557,1748338232848,-420.60112534,0.00019178,2]
[362488558,1748338232858,-433.50589293,0.00019178,2]
[362488559,1748338232867,-430.0,0.00019178,2]
[362488560,1748338232877,-407.77714249,0.00019178,2]
[362488561,1748338232887,-430.0,0.00019178,2]
[362488562,1748338232897,-430.0,0.00019178,2]
[362488563,1748338232907,-301.72768799,0.00019178,2]
[362488564,1748338232917,-430.0,0.00019178,2]
[362488565,1748338232926,-430.0,0.00019178,2]
[362488566,1748338232936,-450.0,0.00019178,2]
[362488567,1748338232946,-430.0,0.00019178,2]
[362488568,1748338232956,-450.0,0.00019178,2]
[362488569,1748338232967,-430.0,0.00019178,2]
[362488570,1748338232977,-400.0,0.00019178,2]
[362488571,1748338232986,-300.0,0.00019178,2]
[362488572,1748338232996,-487.0002271,0.00019178,2]
[362488573,1748338233006,-430.0,0.00019178,2]
[362488574,1748338233016,-407.08946938,0.00019178,2]
[362488575,1748338233026,-430.0,0.00019178,2]
[362488576,1748338233036,-430.0,0.00019178,2]
[362488577,1748338233046,-430.0,0.00019178,2]
[362488578,1748338233057,-430.0,0.00019178,2]
[362488579,1748338233260,-430.0,0.00019178,2]
[362488580,1748338233271,-430.0,0.00019178,2]
[362488581,1748338233281,-430.0,0.00019178,2]
[362488582,1748338233292,-430.0,0.00019178,2]
[362488583,1748338233302,-430.0,0.00019178,2]
[362488584,1748338233312,-401.24960383,0.00019178,2]
[362488585,1748338233322,-400.0,0.00019178,2]
[362488586,1748338233332,-402.3076881,0.00019178,2]
[362488587,1748338233341,-430.0,0.00019178,2]
[362488588,1748338233352,-402.8205853,0.00019178,2]
[362488589,1748338233361,-400.0,0.00019178,2]
[362488590,1748338233372,-430.0,0.00019178,2]
[362488591,1748338233382,-430.0,0.00019178,2]
[362488592,1748338233392,-430.0,0.00019178,2]
[362488593,1748338233402,-430.0,0.00019178,2]
[362488594,1748338233411,-430.0,0.00019178,2]
[362488595,1748338233421,-430.0,0.00019178,2]
[362488596,1748338233431,-430.0,0.00019178,2]
[362488597,1748338233440,-430.0,0.00019178,2]
[362488598,1748338233450,-430.0,0.00019178,2]
[362488599,1748338233459,-400.0,0.00019178,2]
[362488600,1748338233469,-430.0,0.00019178,2]
[362488601,1748338233478,-430.0,0.00019178,2]
[362488602,1748338233487,-430.0,0.00019178,2]
[362488603,1748338233497,-430.0,0.00019178,2]
[362488604,1748338233506,-203.22028339,0.00019178,2]
[362488605,1748338233515,-401.06920622,0.00019178,2]
[362488606,1748338233525,-430.0,0.00019178,2]
[362488607,1748338233534,-430.0,0.00019178,2]
[362488608,1748338233543,-450.0,0.00019178,2]
[362488609,1748338233553,-430.0,0.00019178,2]
[362488610,1748338233563,-430.0,0.00019178,2]
[362488611,1748338233572,-401.11931585,0.00019178,2]
[362488612,1748338233582,-430.0,0.00019178,2]
[362488613,1748338233591,-430.0,0.00019178,2]
[362488614,1748338233601,-430.0,0.00019178,2]
[362488615,1748338233610,-400.0,0.00019178,2]
[362488616,1748338233620,-430.0,0.00019178,2]
[362488617,1748338233630,-401.78527147,0.00019178,2]
[362488618,1748338233640,-430.0,0.00019178,2]
[362488619,1748338233650,-430.0,0.00019178,2]
[362488620,1748338233659,-430.0,0.00019178,2]
[362488621,1748338233670,-500.0,0.00019178,2]
[362488622,1748338233679,-430.0,0.00019178,2]
[362488623,1748338233689,-430.0,0.00019178,2]
[362488624,1748338233699,-435.81729814,0.00019178,2]
[362488625,1748338233708,-430.0,0.00019178,2]
[362488626,1748338233718,-400.8738898,0.00019178,2]
[362488627,1748338233727,-430.0,0.00019178,2]
[362488628,1748338233737,-430.0,0.00019178,2]
[362488629,1748338233746,-430.0,0.00019178,2]
[362488630,1748338233756,-398.63942026,0.00019178,2]
[362488631,1748338233766,-430.0,0.00019178,2]
[362488632,1748338233776,-430.0,0.00019178,2]
[362488633,1748338233787,-430.0,0.00019178,2]
[362488634,1748338233796,-430.0,0.00019178,2]
[362488635,1748338233807,-430.0,0.00019178,2]
[362488636,1748338233816,-430.0,0.00019178,2]
[362488637,1748338233826,-430.0,0.00019178,2]
[362488638,1748338233836,-277.62882992,0.00019178,2]
[362488639,1748338233845,-430.0,0.00019178,2]
[362488640,1748338233856,-430.0,0.00019178,2]
[362488641,1748338233866,-421.59719,0.00019178,2]
[362488642,1748338233876,-430.0,0.00019178,2]
[362488643,1748338233886,-430.0,0.00019178,2]
[362488644,1748338233897,-350.0,0.00019178,2]
[362488645,1748338233907,-430.0,0.00019178,2]
[362488646,1748338233918,-430.0,0.00019178,2]
[362488647,1748338233928,-430.0,0.00019178,2]
[362488648,1748338233938,-400.0,0.00019178,2]
[362488649,1748338233960,-430.0,0.00019178,2]
[362488650,1748338233972,-430.0,0.00019178,2]
[362488651,1748338233983,-430.0,0.00019178,2]
[362488652,1748338233993,-430.0,0.00019178,2]
[362488653,1748338234004,-350.0,0.00019178,2]
[362488654,1748338234014,-430.0,0.00019178,2]
[362488655,1748338234025,-450.0,0.00019178,2]
[362488656,1748338234035,-430.0,0.00019178,2]
[362488657,1748338234046,-430.0,0.00019178,2]
[362488658,1748338234056,-430.0,0.00019178,2]
[362488659,1748338234068,-450.0,0.00019178,2]
[362488660,1748338234078,-430.0,0.00019178,2]
[362488661,1748338234089,-430.0,0.00019178,2]
[362488662,1748338234099,-430.0,0.00019178,2]
[362488663,1748338234110,-432.01012934,0.00019178,2]
[362488664,1748338234120,-430.0,0.00019178,2]
[362488665,1748338234131,-430.0,0.00019178,2]
[362488666,1748338234142,-430.0,0.00019178,2]
[362488667,1748338234153,-430.0,0.00019178,2]
[362488668,1748338234163,-400.81391833,0.00019178,2]
[362488669,1748338234174,-430.0,0.00019178,2]
[362488670,1748338234185,-432.16111239,0.00019178,2]
[362488671,1748338234197,-430.0,0.00019178,2]
[362488672,1748338234207,-430.0,0.00019178,2]
[362488673,1748338234218,-219.46690057,0.00019178,2]
[362488674,1748338234229,-430.0,0.00019178,2]
[362488675,1748338234239,-430.0,0.00019178,2]
[362488676,1748338234250,-430.0,0.00019178,2]
[362488677,1748338234262,-430.0,0.00019178,2]
[362488678,1748338234273,-430.0,0.00019178,2]
[362488679,1748338234285,-430.0,0.00019178,2]
[362488680,1748338234300,-430.0,0.00019178,2]
[362488681,1748338234311,-430.0,0.00019178,2]
[362488682,1748338234321,-400.0,0.00019178,2]
[362488683,1748338234332,-430.0,0.00019178,2]
[362488684,1748338234343,-430.0,0.00019178,2]
[362488685,1748338234353,-430.0,0.00019178,2]
[362488686,1748338234363,-494.83404004,0.00019178,2]
[362488687,1748338234375,-430.0,0.00019178,2]